[Event "*** SCC Grand Prix: Titled Tuesday Blitz"]
[Site "Chess.com"]
[Date "2020.06.02"]
[Round "4"]
[White "JosefineHeinemann"]
[Black "chito89"]
[Result "0-1"]
[WhiteElo "2560"]
[BlackElo "2807"]
[TimeControl "180+1"]
[EndTime "10:40:40 PDT"]
[Termination "chito89 won by resignation"]

1. e4 {[%clk 0:03:00.9]} 1... e5 {[%clk 0:02:56.9]} 2. Nf3 {[%clk 0:03:00.8]}
2... Nc6 {[%clk 0:02:56.4]} 3. Bb5 {[%clk 0:03:00.8]} 3... a6 {[%clk 0:02:56.4]}
4. Ba4 {[%clk 0:03:00.9]} 4... d6 {[%clk 0:02:56.5]} 5. O-O {[%clk 0:02:59.9]}
5... Bd7 {[%clk 0:02:52.4]} 6. d4 {[%clk 0:02:58.5]} 6... Nge7 {[%clk
0:02:40.5]} 7. d5 {[%clk 0:02:57.1]} 7... Nb8 {[%clk 0:02:39.8]} 8. Bxd7+ {[%clk
0:02:58]} 8... Nxd7 {[%clk 0:02:39.8]} 9. c4 {[%clk 0:02:58.6]} 9... g6 {[%clk
0:02:36.7]} 10. Nc3 {[%clk 0:02:58.5]} 10... Bg7 {[%clk 0:02:36]} 11. Be3 {[%clk
0:02:57.4]} 11... O-O {[%clk 0:02:34.1]} 12. Nd2 {[%clk 0:02:56.9]} 12... f5
{[%clk 0:02:32.5]} 13. f3 {[%clk 0:02:56.5]} 13... f4 {[%clk 0:02:31.6]} 14. Bf2
{[%clk 0:02:56.5]} 14... g5 {[%clk 0:02:32.5]} 15. b4 {[%clk 0:02:50.7]} 15...
h5 {[%clk 0:02:22.1]} 16. c5 {[%clk 0:02:45.6]} 16... Nf6 {[%clk 0:02:22.1]} 17.
Nc4 {[%clk 0:02:43]} 17... Ng6 {[%clk 0:02:16]} 18. Rc1 {[%clk 0:01:58.2]} 18...
g4 {[%clk 0:02:00.5]} 19. Na4 {[%clk 0:01:47.2]} 19... g3 {[%clk 0:01:47.8]} 20.
hxg3 {[%clk 0:01:44.9]} 20... fxg3 {[%clk 0:01:48.7]} 21. Bxg3 {[%clk
0:01:40.3]} 21... h4 {[%clk 0:01:48.4]} 22. Bf2 {[%clk 0:01:38.8]} 22... Nh5
{[%clk 0:01:48.3]} 23. cxd6 {[%clk 0:01:30.2]} 23... cxd6 {[%clk 0:01:44.3]} 24.
Nab6 {[%clk 0:01:27]} 24... Rb8 {[%clk 0:01:39.8]} 25. Na5 {[%clk 0:01:09.6]}
25... Ngf4 {[%clk 0:01:24.9]} 26. Kh2 {[%clk 0:00:41.8]} 26... Qg5 {[%clk
0:01:11.9]} 27. Rg1 {[%clk 0:00:42]} 27... Rf6 {[%clk 0:01:07.4]} 28. Qa4 {[%clk
0:00:25]} 28... Rd8 {[%clk 0:00:57.3]} 29. Rc8 {[%clk 0:00:21.9]} 29... Rxc8
{[%clk 0:00:56.3]} 30. Nxc8 {[%clk 0:00:22.8]} 30... Rh6 {[%clk 0:00:51.6]} 31.
Qe8+ {[%clk 0:00:18.8]} 31... Kh7 {[%clk 0:00:51.5]} 32. Qd7 {[%clk 0:00:17.6]}
32... Ne2 {[%clk 0:00:17.1]} 33. Qf5+ {[%clk 0:00:13.5]} 33... Qxf5 {[%clk
0:00:16.7]} 34. exf5 {[%clk 0:00:14.4]} 34... Nxg1 {[%clk 0:00:17]} 35. Kxg1
{[%clk 0:00:14]} 35... Nf4 {[%clk 0:00:16.9]} 36. Nxb7 {[%clk 0:00:13]} 36... h3
{[%clk 0:00:17.2]} 37. g3 {[%clk 0:00:12.6]} 37... h2+ {[%clk 0:00:16.4]} 38.
Kh1 {[%clk 0:00:12.6]} 38... Nxd5 {[%clk 0:00:15.4]} 39. Ncxd6 {[%clk
0:00:11.1]} 39... Nxb4 {[%clk 0:00:15.3]} 40. Ne4 {[%clk 0:00:11]} 40... Nxa2
{[%clk 0:00:09.9]} 41. Be3 {[%clk 0:00:11.2]} 41... Rc6 {[%clk 0:00:09.3]} 42.
Kxh2 {[%clk 0:00:10.8]} 42... Nb4 {[%clk 0:00:09.3]} 43. Nbd6 {[%clk 0:00:10.8]}
43... Nd5 {[%clk 0:00:08.8]} 44. Bg5 {[%clk 0:00:09.8]} 44... a5 {[%clk
0:00:09.2]} 45. f6 {[%clk 0:00:09.8]} 45... Bf8 {[%clk 0:00:06.3]} 46. f7 {[%clk
0:00:09.4]} 46... Kg6 {[%clk 0:00:03.9]} 47. Ne8 {[%clk 0:00:07.6]} 47... Rc2+
{[%clk 0:00:03.1]} 48. Kh3 {[%clk 0:00:07.5]} 48... Kxf7 {[%clk 0:00:04]} 49.
N8d6+ {[%clk 0:00:07]} 49... Ke6 {[%clk 0:00:04.5]} 50. Nb5 {[%clk 0:00:06.6]}
50... a4 {[%clk 0:00:04.7]} 51. Na3 {[%clk 0:00:06.4]} 51... Ra2 {[%clk
0:00:04.7]} 52. Nc4 {[%clk 0:00:06.6]} 52... Rc2 {[%clk 0:00:04.9]} 53. Na5
{[%clk 0:00:05.7]} 53... Bb4 {[%clk 0:00:04.2]} 54. Nb7 {[%clk 0:00:05.5]} 54...
a3 {[%clk 0:00:04.8]} 55. Bh6 {[%clk 0:00:03.5]} 55... a2 {[%clk 0:00:04.5]} 56.
Ng5+ {[%clk 0:00:04.4]} 56... Kd7 {[%clk 0:00:04.9]} 0-1

[Event "*** SCC Grand Prix: Titled Tuesday Blitz"]
[Site "Chess.com"]
[Date "2020.06.02"]
[Round "4"]
[White "Gerodot71"]
[Black "Irishchessman16"]
[Result "0-1"]
[WhiteElo "2345"]
[BlackElo "2421"]
[TimeControl "180+1"]
[EndTime "10:40:40 PDT"]
[Termination "Irishchessman16 won by checkmate"]

1. d4 {[%clk 0:03:00.9]} 1... d5 {[%clk 0:02:57.8]} 2. c4 {[%clk 0:03:00.7]}
2... c6 {[%clk 0:02:56.1]} 3. Nf3 {[%clk 0:03:00.1]} 3... Nf6 {[%clk 0:02:55.6]}
4. Nc3 {[%clk 0:02:59.1]} 4... e6 {[%clk 0:02:54.4]} 5. e3 {[%clk 0:02:58.2]}
5... Nbd7 {[%clk 0:02:53.2]} 6. Be2 {[%clk 0:02:57.7]} 6... Bd6 {[%clk
0:02:50.7]} 7. O-O {[%clk 0:02:57.2]} 7... O-O {[%clk 0:02:50.1]} 8. b3 {[%clk
0:02:57.2]} 8... b6 {[%clk 0:02:42.3]} 9. Bb2 {[%clk 0:02:55.3]} 9... Bb7 {[%clk
0:02:42.3]} 10. Qc2 {[%clk 0:02:54]} 10... Qe7 {[%clk 0:02:37.3]} 11. a4 {[%clk
0:02:53.7]} 11... a5 {[%clk 0:02:29.9]} 12. Rad1 {[%clk 0:02:51.4]} 12... Rfe8
{[%clk 0:02:25.4]} 13. Rfe1 {[%clk 0:02:49.9]} 13... Rad8 {[%clk 0:02:15.5]} 14.
e4 {[%clk 0:02:44.6]} 14... Nxe4 {[%clk 0:02:06.8]} 15. Nxe4 {[%clk 0:02:44.3]}
15... dxe4 {[%clk 0:02:07.7]} 16. Qxe4 {[%clk 0:02:44.7]} 16... Nf6 {[%clk
0:02:07.4]} 17. Qc2 {[%clk 0:02:40.9]} 17... Bb4 {[%clk 0:01:57.9]} 18. Rf1
{[%clk 0:02:37.6]} 18... c5 {[%clk 0:01:55.9]} 19. Ne5 {[%clk 0:02:21.9]} 19...
cxd4 {[%clk 0:01:42.1]} 20. Bxd4 {[%clk 0:02:21.4]} 20... Bc5 {[%clk 0:01:37.2]}
21. Bc3 {[%clk 0:02:13.4]} 21... Be4 {[%clk 0:01:29.3]} 22. Qb2 {[%clk
0:02:11.2]} 22... Qb7 {[%clk 0:01:25.8]} 23. Bf3 {[%clk 0:02:02.7]} 23... Bxf3
{[%clk 0:00:56]} 24. Nxf3 {[%clk 0:02:03.6]} 24... Ne4 {[%clk 0:00:56.2]} 25.
Rxd8 {[%clk 0:01:45.9]} 25... Rxd8 {[%clk 0:00:53.2]} 26. Bxg7 {[%clk
0:01:46.3]} 26... Nxf2 {[%clk 0:00:52]} 27. Bd4 {[%clk 0:01:46.2]} 27... Nd3
{[%clk 0:00:43.7]} 28. Qd2 {[%clk 0:01:11.2]} 28... Bxd4+ {[%clk 0:00:27.4]} 29.
Nxd4 {[%clk 0:01:10.7]} 29... Rxd4 {[%clk 0:00:25.6]} 30. Qg5+ {[%clk
0:01:10.6]} 30... Kf8 {[%clk 0:00:25.4]} 31. Qf6 {[%clk 0:01:03.1]} 31... Rd7
{[%clk 0:00:18]} 32. h4 {[%clk 0:00:58]} 32... Ke8 {[%clk 0:00:15.2]} 33. h5
{[%clk 0:00:56.7]} 33... Re7 {[%clk 0:00:14.7]} 34. Qh8+ {[%clk 0:00:54.2]}
34... Kd7 {[%clk 0:00:13.9]} 35. Qxh7 {[%clk 0:00:55.1]} 35... Nc5 {[%clk
0:00:12.7]} 36. h6 {[%clk 0:00:53.9]} 36... Qe4 {[%clk 0:00:11.6]} 37. Rd1+
{[%clk 0:00:47.2]} 37... Kc7 {[%clk 0:00:11.1]} 38. Qh8 {[%clk 0:00:41.2]} 38...
Qe3+ {[%clk 0:00:10.6]} 39. Kh1 {[%clk 0:00:39.8]} 39... Rd7 {[%clk 0:00:10]}
40. Rxd7+ {[%clk 0:00:28.1]} 40... Nxd7 {[%clk 0:00:10]} 41. h7 {[%clk
0:00:24.1]} 41... Qh6+ {[%clk 0:00:09.7]} 42. Kg1 {[%clk 0:00:23.8]} 42... Nf6
{[%clk 0:00:09.3]} 43. Qa8 {[%clk 0:00:22.3]} 43... Qxh7 {[%clk 0:00:06.1]} 44.
Qa7+ {[%clk 0:00:22.5]} 44... Kc6 {[%clk 0:00:05.6]} 45. Qe7 {[%clk 0:00:20.1]}
45... Qb1+ {[%clk 0:00:03.5]} 46. Kh2 {[%clk 0:00:19.2]} 46... Ng4+ {[%clk
0:00:03.8]} 47. Kg3 {[%clk 0:00:19.6]} 47... Qf5 {[%clk 0:00:03.8]} 48. Qe8+
{[%clk 0:00:18.7]} 48... Kc5 {[%clk 0:00:04.2]} 49. Qb5+ {[%clk 0:00:18.7]}
49... Kd4 {[%clk 0:00:04.1]} 50. Qxb6+ {[%clk 0:00:19.6]} 50... Kd3 {[%clk
0:00:02.5]} 51. Qd6+ {[%clk 0:00:17.7]} 51... Ke2 {[%clk 0:00:02]} 52. c5 {[%clk
0:00:15.7]} 52... Ne3 {[%clk 0:00:02.2]} 53. Qf4 {[%clk 0:00:10]} 53... Qg6+
{[%clk 0:00:02.3]} 54. Kh4 {[%clk 0:00:09]} 54... Nxg2+ {[%clk 0:00:02.1]} 55.
Kh3 {[%clk 0:00:09.9]} 55... Nxf4+ {[%clk 0:00:02.7]} 56. Kh2 {[%clk 0:00:10.4]}
56... Qg2# {[%clk 0:00:03.2]} 0-1

[Event "*** SCC Grand Prix: Titled Tuesday Blitz"]
[Site "Chess.com"]
[Date "2020.06.02"]
[Round "4"]
[White "pavelalexandru07"]
[Black "Lovinski"]
[Result "1-0"]
[WhiteElo "2129"]
[BlackElo "2374"]
[TimeControl "180+1"]
[EndTime "10:40:40 PDT"]
[Termination "pavelalexandru07 won by resignation"]

1. e4 {[%clk 0:03:00.9]} 1... e5 {[%clk 0:02:59.7]} 2. Nf3 {[%clk 0:03:00]} 2...
Nc6 {[%clk 0:02:59.5]} 3. Bb5 {[%clk 0:02:59.7]} 3... a6 {[%clk 0:02:59.6]} 4.
Ba4 {[%clk 0:02:59.8]} 4... Nf6 {[%clk 0:02:59.9]} 5. O-O {[%clk 0:02:58.8]}
5... Be7 {[%clk 0:03:00.3]} 6. Re1 {[%clk 0:02:58.3]} 6... b5 {[%clk 0:03:00.7]}
7. Bb3 {[%clk 0:02:58.8]} 7... d6 {[%clk 0:03:01.6]} 8. c3 {[%clk 0:02:57.6]}
8... O-O {[%clk 0:03:01.6]} 9. h3 {[%clk 0:02:57.6]} 9... Nb8 {[%clk 0:03:01.7]}
10. d4 {[%clk 0:02:57.3]} 10... Nbd7 {[%clk 0:03:01.9]} 11. a4 {[%clk 0:02:54]}
11... Bb7 {[%clk 0:02:53.4]} 12. Nbd2 {[%clk 0:02:52.9]} 12... c5 {[%clk
0:02:35.6]} 13. Bc2 {[%clk 0:02:50.8]} 13... cxd4 {[%clk 0:02:21.8]} 14. cxd4
{[%clk 0:02:49.6]} 14... exd4 {[%clk 0:02:16.6]} 15. Nxd4 {[%clk 0:02:33.4]}
15... Re8 {[%clk 0:02:05.2]} 16. axb5 {[%clk 0:02:17.5]} 16... axb5 {[%clk
0:02:06.1]} 17. Rxa8 {[%clk 0:02:17.5]} 17... Bxa8 {[%clk 0:01:59.6]} 18. Nxb5
{[%clk 0:02:13.8]} 18... Qb6 {[%clk 0:01:59.5]} 19. Nc3 {[%clk 0:02:09.2]} 19...
Nc5 {[%clk 0:01:59]} 20. Nc4 {[%clk 0:01:49.2]} 20... Qa6 {[%clk 0:01:53.2]} 21.
b3 {[%clk 0:01:02.6]} 21... Bf8 {[%clk 0:01:51.9]} 22. f3 {[%clk 0:01:02.7]}
22... h6 {[%clk 0:01:21.1]} 23. Be3 {[%clk 0:00:44.8]} 23... Bb7 {[%clk
0:00:48.7]} 24. Qd2 {[%clk 0:00:37.6]} 24... Rd8 {[%clk 0:00:36.2]} 25. Qf2
{[%clk 0:00:34.5]} 25... Ne6 {[%clk 0:00:28]} 26. Rd1 {[%clk 0:00:31]} 26... d5
{[%clk 0:00:24.6]} 27. exd5 {[%clk 0:00:30.9]} 27... Nxd5 {[%clk 0:00:25.5]} 28.
Nxd5 {[%clk 0:00:29.6]} 28... Bxd5 {[%clk 0:00:25.8]} 29. Qe2 {[%clk 0:00:17.4]}
29... Bb4 {[%clk 0:00:19.1]} 30. Bf2 {[%clk 0:00:16.8]} 30... Qc6 {[%clk
0:00:12.9]} 31. Ne5 {[%clk 0:00:14.1]} 31... Qb7 {[%clk 0:00:11.6]} 32. Nc4
{[%clk 0:00:13.4]} 32... Bc5 {[%clk 0:00:11]} 33. Bxc5 {[%clk 0:00:12.7]} 33...
Nxc5 {[%clk 0:00:11.9]} 34. Qe3 {[%clk 0:00:12.4]} 34... Ne6 {[%clk 0:00:11.9]}
35. Qd3 {[%clk 0:00:10.4]} 35... g6 {[%clk 0:00:10.1]} 36. Ne3 {[%clk
0:00:07.5]} 36... Nf4 {[%clk 0:00:09.7]} 37. Qd2 {[%clk 0:00:06.8]} 37... Kh7
{[%clk 0:00:04.1]} 38. Nxd5 {[%clk 0:00:06.8]} 38... Qa7+ {[%clk 0:00:03.5]} 39.
Qe3 {[%clk 0:00:04.9]} 39... Qxe3+ {[%clk 0:00:01.4]} 40. Nxe3 {[%clk
0:00:04.8]} 40... Re8 {[%clk 0:00:01]} 41. Kf2 {[%clk 0:00:03.8]} 41... Ne6
{[%clk 0:00:01.9]} 42. b4 {[%clk 0:00:03.1]} 42... Rb8 {[%clk 0:00:02.8]} 43.
Rb1 {[%clk 0:00:03.2]} 43... Rb6 {[%clk 0:00:03.2]} 44. Bd3 {[%clk 0:00:03.3]}
44... Nd4 {[%clk 0:00:04.1]} 45. Be2 {[%clk 0:00:03.2]} 45... Ne6 {[%clk
0:00:04.5]} 46. b5 {[%clk 0:00:03.2]} 46... h5 {[%clk 0:00:04.8]} 47. Nd5 {[%clk
0:00:03.3]} 47... Rb8 {[%clk 0:00:05.7]} 48. b6 {[%clk 0:00:03.4]} 48... Nc5
{[%clk 0:00:06.6]} 49. Bc4 {[%clk 0:00:02]} 49... Kg7 {[%clk 0:00:07.5]} 50. Nc7
{[%clk 0:00:02.3]} 50... Kf6 {[%clk 0:00:08.4]} 51. Na6 {[%clk 0:00:02.8]} 51...
Rb7 {[%clk 0:00:08.4]} 52. Nxc5 {[%clk 0:00:02.8]} 52... Rb8 {[%clk 0:00:09.3]}
53. b7 {[%clk 0:00:03.2]} 53... Re8 {[%clk 0:00:10.2]} 54. Na6 {[%clk
0:00:03.4]} 1-0

[Event "*** SCC Grand Prix: Titled Tuesday Blitz"]
[Site "Chess.com"]
[Date "2020.06.02"]
[Round "4"]
[White "Mikedannnn"]
[Black "GoltsevDmitry2000"]
[Result "0-1"]
[WhiteElo "2458"]
[BlackElo "2647"]
[TimeControl "180+1"]
[EndTime "10:40:42 PDT"]
[Termination "GoltsevDmitry2000 won by resignation"]

1. e4 {[%clk 0:03:00.9]} 1... c5 {[%clk 0:02:59.6]} 2. Nf3 {[%clk 0:03:00.5]}
2... e6 {[%clk 0:02:59.6]} 3. c4 {[%clk 0:03:00]} 3... Nc6 {[%clk 0:02:59.7]} 4.
Nc3 {[%clk 0:02:59.8]} 4... Nd4 {[%clk 0:02:59.5]} 5. Be2 {[%clk 0:02:51.5]}
5... d6 {[%clk 0:02:53.8]} 6. O-O {[%clk 0:02:50.7]} 6... Nf6 {[%clk 0:02:53.3]}
7. d3 {[%clk 0:02:50.2]} 7... e5 {[%clk 0:02:52.8]} 8. a3 {[%clk 0:02:49]} 8...
Nxe2+ {[%clk 0:02:48.5]} 9. Nxe2 {[%clk 0:02:45.7]} 9... Bg4 {[%clk 0:02:49.4]}
10. Ng3 {[%clk 0:02:45.7]} 10... Be7 {[%clk 0:02:41.7]} 11. b4 {[%clk
0:02:44.3]} 11... Nd7 {[%clk 0:02:34.3]} 12. h3 {[%clk 0:02:41.1]} 12... Be6
{[%clk 0:02:18.3]} 13. Rb1 {[%clk 0:02:31.2]} 13... O-O {[%clk 0:02:15.5]} 14.
Be3 {[%clk 0:01:59]} 14... b6 {[%clk 0:01:57.8]} 15. Ne1 {[%clk 0:01:12.5]}
15... Bg5 {[%clk 0:01:52.2]} 16. Nc2 {[%clk 0:01:12.5]} 16... g6 {[%clk
0:01:39.6]} 17. Ne2 {[%clk 0:01:01.6]} 17... f5 {[%clk 0:01:35]} 18. f4 {[%clk
0:00:54.7]} 18... Bf6 {[%clk 0:01:31.7]} 19. exf5 {[%clk 0:00:37.5]} 19... Bxf5
{[%clk 0:01:29.5]} 20. g4 {[%clk 0:00:32.2]} 20... Be6 {[%clk 0:01:26.7]} 21. f5
{[%clk 0:00:32.6]} 21... Bf7 {[%clk 0:01:24.7]} 22. g5 {[%clk 0:00:31.4]} 22...
Bxg5 {[%clk 0:01:24.3]} 23. Nc3 {[%clk 0:00:26.3]} 23... Bxe3+ {[%clk
0:01:20.5]} 24. Nxe3 {[%clk 0:00:26.5]} 24... Qg5+ {[%clk 0:01:20.9]} 25. Ng4
{[%clk 0:00:25.7]} 25... gxf5 {[%clk 0:01:18.7]} 26. Rxf5 {[%clk 0:00:25.3]}
26... Qg6 {[%clk 0:01:12]} 27. Ne4 {[%clk 0:00:17.2]} 27... Kh8 {[%clk
0:01:10.1]} 28. Rg5 {[%clk 0:00:17.2]} 28... Qe6 {[%clk 0:01:08.2]} 29. Qd2
{[%clk 0:00:16.7]} 29... Rg8 {[%clk 0:01:07.7]} 30. Rf1 {[%clk 0:00:16.5]} 30...
Bg6 {[%clk 0:01:07.2]} 31. Ngf6 {[%clk 0:00:15.4]} 31... Rg7 {[%clk 0:00:57.7]}
32. h4 {[%clk 0:00:11]} 32... Rf8 {[%clk 0:00:51.7]} 33. Nxd7 {[%clk 0:00:05.8]}
33... Rxf1+ {[%clk 0:00:52]} 34. Kxf1 {[%clk 0:00:06.7]} 34... Rxd7 {[%clk
0:00:48.4]} 35. Kg1 {[%clk 0:00:07.2]} 35... Rf7 {[%clk 0:00:47.9]} 36. Rg2
{[%clk 0:00:07.5]} 36... Bxe4 {[%clk 0:00:42.6]} 37. dxe4 {[%clk 0:00:07.5]}
37... Qxc4 {[%clk 0:00:28.6]} 38. Qg5 {[%clk 0:00:06.7]} 38... Qf1+ {[%clk
0:00:27.6]} 39. Kh2 {[%clk 0:00:06.5]} 39... Qf4+ {[%clk 0:00:25.9]} 40. Qxf4
{[%clk 0:00:04.8]} 40... Rxf4 {[%clk 0:00:26.8]} 41. bxc5 {[%clk 0:00:04.9]}
41... bxc5 {[%clk 0:00:25.7]} 42. Rd2 {[%clk 0:00:04.9]} 42... Rxh4+ {[%clk
0:00:25.5]} 43. Kg3 {[%clk 0:00:04.8]} 43... Rxe4 {[%clk 0:00:26.4]} 44. Rxd6
{[%clk 0:00:05.7]} 44... Re3+ {[%clk 0:00:26.6]} 45. Kf2 {[%clk 0:00:05.7]}
45... Rxa3 {[%clk 0:00:27.5]} 46. Rd5 {[%clk 0:00:06.3]} 46... c4 {[%clk
0:00:24]} 47. Rxe5 {[%clk 0:00:06.5]} 47... Kg7 {[%clk 0:00:24.3]} 48. Rc5
{[%clk 0:00:06.7]} 48... c3 {[%clk 0:00:24.5]} 49. Kf3 {[%clk 0:00:06.8]} 49...
Kf6 {[%clk 0:00:23.7]} 50. Kg4 {[%clk 0:00:07.1]} 50... Ke6 {[%clk 0:00:23.9]}
51. Kh5 {[%clk 0:00:07.1]} 51... Kd6 {[%clk 0:00:24.3]} 52. Rc8 {[%clk
0:00:07.4]} 52... Kd5 {[%clk 0:00:24.6]} 53. Rd8+ {[%clk 0:00:07.6]} 53... Kc4
{[%clk 0:00:25.1]} 54. Rc8+ {[%clk 0:00:08.5]} 54... Kd3 {[%clk 0:00:25.6]} 55.
Rd8+ {[%clk 0:00:08.8]} 55... Kc2 {[%clk 0:00:26]} 56. Kg4 {[%clk 0:00:09.3]}
56... Kb2 {[%clk 0:00:26.3]} 0-1

[Event "*** SCC Grand Prix: Titled Tuesday Blitz"]
[Site "Chess.com"]
[Date "2020.06.02"]
[Round "4"]
[White "Guenplen"]
[Black "chessdude"]
[Result "1/2-1/2"]
[WhiteElo "2912"]
[BlackElo "2624"]
[TimeControl "180+1"]
[EndTime "10:40:43 PDT"]
[Termination "Game drawn by repetition"]

1. d4 {[%clk 0:03:00.9]} 1... Nf6 {[%clk 0:02:59.8]} 2. Bf4 {[%clk 0:03:00.9]}
2... d5 {[%clk 0:02:56.7]} 3. e3 {[%clk 0:03:00.8]} 3... c5 {[%clk 0:02:55.2]}
4. c3 {[%clk 0:03:00.5]} 4... Nc6 {[%clk 0:02:55.5]} 5. Nd2 {[%clk 0:03:00]}
5... Bf5 {[%clk 0:02:52.9]} 6. Ngf3 {[%clk 0:02:56.1]} 6... e6 {[%clk
0:02:50.6]} 7. Nh4 {[%clk 0:02:50]} 7... Bg4 {[%clk 0:02:33.6]} 8. Qb3 {[%clk
0:02:49]} 8... Qd7 {[%clk 0:02:26.2]} 9. h3 {[%clk 0:02:48.6]} 9... Bh5 {[%clk
0:02:26.3]} 10. g4 {[%clk 0:02:48.7]} 10... Bg6 {[%clk 0:02:26.8]} 11. Nxg6
{[%clk 0:02:48.5]} 11... hxg6 {[%clk 0:02:26.7]} 12. Bg2 {[%clk 0:02:48.8]}
12... cxd4 {[%clk 0:02:20.4]} 13. exd4 {[%clk 0:02:45.4]} 13... Na5 {[%clk
0:02:03.5]} 14. Qd1 {[%clk 0:02:33.7]} 14... Bd6 {[%clk 0:02:03.7]} 15. Bxd6
{[%clk 0:02:19.4]} 15... Qxd6 {[%clk 0:02:03.7]} 16. Qe2 {[%clk 0:02:14.2]}
16... Nc6 {[%clk 0:01:59.3]} 17. O-O {[%clk 0:02:08.4]} 17... Qf4 {[%clk
0:01:49.7]} 18. Rfe1 {[%clk 0:02:01.5]} 18... g5 {[%clk 0:01:43.6]} 19. Qe3
{[%clk 0:01:44.7]} 19... Ne7 {[%clk 0:01:30.2]} 20. Nf3 {[%clk 0:01:36.7]} 20...
Qxe3 {[%clk 0:01:05.2]} 21. fxe3 {[%clk 0:01:29.9]} 21... Ne4 {[%clk 0:01:05.4]}
22. Ne5 {[%clk 0:01:29.9]} 22... f6 {[%clk 0:00:58.4]} 23. Nd3 {[%clk
0:01:24.2]} 23... b6 {[%clk 0:00:51.7]} 24. Nf2 {[%clk 0:01:14.6]} 24... f5
{[%clk 0:00:52]} 25. c4 {[%clk 0:00:58.2]} 25... Nxf2 {[%clk 0:00:50.4]} 26.
Kxf2 {[%clk 0:00:57.6]} 26... fxg4 {[%clk 0:00:51.1]} 27. hxg4 {[%clk
0:00:56.2]} 27... Rc8 {[%clk 0:00:50.7]} 28. cxd5 {[%clk 0:00:48.3]} 28... exd5
{[%clk 0:00:44.1]} 29. Rac1 {[%clk 0:00:45]} 29... Kd7 {[%clk 0:00:43.9]} 30.
Kg3 {[%clk 0:00:38.8]} 30... Rxc1 {[%clk 0:00:39.4]} 31. Rxc1 {[%clk 0:00:38.5]}
31... Rc8 {[%clk 0:00:40.1]} 32. Rxc8 {[%clk 0:00:33.6]} 32... Kxc8 {[%clk
0:00:41]} 33. e4 {[%clk 0:00:30.7]} 33... dxe4 {[%clk 0:00:40.9]} 34. Bxe4
{[%clk 0:00:31.6]} 34... Kc7 {[%clk 0:00:41.1]} 35. Kf3 {[%clk 0:00:31.4]} 35...
Kd6 {[%clk 0:00:41.4]} 36. Ke3 {[%clk 0:00:29.9]} 36... Ng8 {[%clk 0:00:41.3]}
37. a3 {[%clk 0:00:27.8]} 37... Nf6 {[%clk 0:00:41.5]} 38. Bf3 {[%clk
0:00:28.1]} 38... Ke6 {[%clk 0:00:37.8]} 39. Kd3 {[%clk 0:00:27.1]} 39... Kd6
{[%clk 0:00:38.2]} 40. Kc4 {[%clk 0:00:26]} 40... Ng8 {[%clk 0:00:33.4]} 41. Kb5
{[%clk 0:00:21.8]} 41... Kc7 {[%clk 0:00:33.4]} 42. a4 {[%clk 0:00:13.2]} 42...
Nf6 {[%clk 0:00:32.1]} 43. Ka6 {[%clk 0:00:10.4]} 43... Kb8 {[%clk 0:00:32.2]}
44. a5 {[%clk 0:00:10.7]} 44... bxa5 {[%clk 0:00:32.4]} 45. Kxa5 {[%clk
0:00:11.6]} 45... Ne8 {[%clk 0:00:28.6]} 46. Kb5 {[%clk 0:00:11.5]} 46... Kc7
{[%clk 0:00:27]} 47. Kc5 {[%clk 0:00:11.9]} 47... Nf6 {[%clk 0:00:26.6]} 48. d5
{[%clk 0:00:10.4]} 48... Ne8 {[%clk 0:00:26.4]} 49. Be4 {[%clk 0:00:09.1]} 49...
Nd6 {[%clk 0:00:26.7]} 50. Bg6 {[%clk 0:00:08.8]} 50... Kd7 {[%clk 0:00:26.1]}
51. Bd3 {[%clk 0:00:07.8]} 51... Kc7 {[%clk 0:00:24.9]} 52. Kd4 {[%clk
0:00:07.8]} 52... Kd7 {[%clk 0:00:24.6]} 53. Ke5 {[%clk 0:00:08.3]} 53... Ke7
{[%clk 0:00:21.7]} 54. b3 {[%clk 0:00:06.7]} 54... Kd7 {[%clk 0:00:19.6]} 55.
Bf5+ {[%clk 0:00:06.7]} 55... Ke7 {[%clk 0:00:19.6]} 56. Be6 {[%clk 0:00:06.3]}
56... Nb5 {[%clk 0:00:18.3]} 57. Bf5 {[%clk 0:00:03.3]} 57... Nd6 {[%clk
0:00:18.4]} 58. Bd3 {[%clk 0:00:03.6]} 58... Kd7 {[%clk 0:00:18.9]} 59. Bc2
{[%clk 0:00:03.8]} 59... Ke7 {[%clk 0:00:19.5]} 60. Bb1 {[%clk 0:00:04.3]} 60...
Kd7 {[%clk 0:00:19.8]} 61. Bf5+ {[%clk 0:00:05.2]} 61... Ke7 {[%clk 0:00:20.3]}
1/2-1/2